fUSD/lending_fUSD_20251112
["ID","MTS","AMOUNT","RATE_DAILY","PERIOD"]
[393742167,1762959699459,-151.0,0.00040359,120]
[393742168,1762959699529,-156.397523,0.00040359,120]
[393742169,1762959699602,-189.101147,0.00040359,120]
[393742170,1762959699671,-151.0,0.00040359,120]
[393742171,1762959699740,-159.587371,0.00040359,30]
[393742172,1762959699812,-151.0,0.00040359,120]
[393742173,1762959699890,-151.0,0.00040359,120]
[393742174,1762959699972,-151.0,0.00040359,120]
[393742175,1762959700054,-155.601954,0.00040359,120]
[393742176,1762959700132,-151.0,0.00040359,120]
[393742177,1762959700204,-186.372097,0.00040359,120]
[393742178,1762959700275,-151.0,0.00040359,120]
[393742179,1762959700347,-151.0,0.00040359,120]
[393742180,1762959700417,-151.0,0.00040359,120]
[393742181,1762959700495,-151.0,0.00040359,120]
[393742182,1762959700569,-151.0,0.00040359,120]
[393742183,1762959700640,-151.0,0.00040359,120]
[393742184,1762959700713,-154.014904,0.00040359,120]
[393742185,1762959700799,-151.0,0.00040359,120]
[393742186,1762959700878,-151.0,0.00040359,120]
[393742187,1762959700958,-157.763248,0.00040359,120]
[393742188,1762959701048,-158.282101,0.00040359,120]
[393742189,1762959701140,-151.0,0.00040359,120]
[393742190,1762959701231,-151.0,0.00040359,120]
[393742191,1762959701315,-180.902965,0.00040359,120]
[393742192,1762959701391,-151.0,0.00040359,120]
[393742193,1762959701476,-151.0,0.00040359,120]
[393742194,1762959701551,-151.0,0.00040359,120]
[393742195,1762959701627,-281.07251,0.00040359,120]
[393742196,1762959701698,-151.0,0.00040359,120]
[393742197,1762959701771,-151.0,0.00040359,120]
[393742198,1762959701852,-151.0,0.00040359,120]
[393742199,1762959701930,-151.0,0.00040359,120]
[393742200,1762959702006,-151.0,0.00040359,120]
[393742201,1762959702087,-151.0,0.00040359,120]
[393742202,1762959702159,-151.0,0.00040359,120]
[393742203,1762959702230,-151.0,0.00040359,120]
[393742204,1762959702304,-151.0,0.00040359,120]
[393742205,1762959702375,-151.0,0.00040359,120]
[393742206,1762959702446,-151.0,0.00040359,120]
[393742207,1762959702517,-151.0,0.00040359,120]
[393742208,1762959702590,-151.0,0.00040359,120]
[393742209,1762959702663,-151.0,0.00040359,120]
[393742210,1762959702740,-151.0,0.00040359,120]
[393742211,1762959702821,-161.563541,0.00040359,120]
[393742212,1762959702899,-151.000001,0.00040359,120]
[393742213,1762959702985,-151.0,0.00040359,120]
[393742214,1762959703074,-151.0,0.00040359,120]
[393742215,1762959703151,-151.0,0.00040359,120]
[393742216,1762959703231,-151.0,0.00040359,120]
[393742217,1762959703310,-151.0,0.00040359,120]
[393742218,1762959703392,-151.0,0.00040359,120]
[393742219,1762959703477,-151.0,0.00040359,120]
[393742220,1762959703561,-151.0,0.00040359,120]
[393742221,1762959703636,-240.552389,0.00040359,30]
[393742222,1762959703713,-151.0,0.00040359,120]
[393742223,1762959703797,-294.208149,0.00040359,120]
[393742224,1762959703883,-151.0,0.00040359,120]
[393742225,1762959703966,-151.0,0.00040359,120]
[393742226,1762959704052,-151.0,0.00040359,120]
[393742227,1762959704143,-151.0,0.00040359,120]
[393742228,1762959704228,-151.0,0.00040359,120]
[393742229,1762959704313,-151.0,0.00040359,45]
[393742230,1762959704394,-151.0,0.00040359,120]
[393742231,1762959704472,-151.0,0.00040359,45]
[393742232,1762959704546,-168.98989,0.00040359,120]
[393742233,1762959704619,-151.0,0.00040359,45]
[393742234,1762959704695,-151.0,0.00040359,45]
[393742235,1762959704771,-151.0,0.00040359,45]
[393742236,1762959704847,-157.046074,0.00040359,120]
[393742237,1762959704927,-151.0,0.00040359,120]
[393742238,1762959705006,-151.0,0.00040359,120]
[393742239,1762959705089,-151.963465,0.00040359,120]
[393742240,1762959705169,-161.337183,0.00040359,120]
[393742241,1762959705255,-151.0,0.00040359,120]
[393742242,1762959705336,-179.037346,0.00040359,120]
[393742243,1762959705417,-151.0,0.00040359,120]
[393742244,1762959705492,-158.7237,0.00040359,120]
[393742245,1762959705564,-167.435468,0.00040359,120]
[393742246,1762959705635,-163.930611,0.00040359,120]
[393742247,1762959705706,-190.081741,0.00040359,120]
[393742248,1762959705780,-151.0,0.00040359,30]
[393742249,1762959705858,-151.0,0.00040359,30]
[393742250,1762959705938,-151.0,0.00040359,30]
[393742251,1762959706018,-151.0,0.00040359,120]
[393742252,1762959706095,-163.884897,0.00040359,120]
[393742253,1762959706170,-151.0,0.00040359,120]
[393742254,1762959706245,-151.0,0.00040359,120]
[393742255,1762959706321,-171.183144,0.00040359,95]
[393742256,1762959706396,-151.0,0.00040359,120]
[393742257,1762959706487,-151.0,0.00040359,120]
[393742258,1762959706564,-151.0,0.00040359,120]
[393742259,1762959706797,-151.0,0.00040359,120]
[393742260,1762959706874,-151.0,0.00040359,120]
[393742261,1762959706951,-151.0,0.00040359,120]
[393742262,1762959707031,-151.0,0.00040359,120]
[393742263,1762959707108,-151.0,0.00040359,120]
[393742264,1762959707184,-151.0,0.00040359,120]
[393742265,1762959707273,-151.0,0.00040359,120]
[393742266,1762959707354,-151.0,0.00040359,120]
[393742267,1762959707450,-151.0,0.00040359,120]
[393742268,1762959707550,-634.95149579,0.00040375,30]
[393742269,1762959707640,-241.83,0.000404,30]
[393742270,1762959707723,-802.24,0.000404,30]
[393742271,1762959707802,-706.0,0.00040458,30]
[393742272,1762959707890,-248.92089,0.00040488,30]
[393742273,1762959707970,-706.0,0.00040595,30]
[393742274,1762959708047,-500.0,0.00040659,120]
[393742275,1762959708120,-248.92089,0.00040688,30]
[393742276,1762959708196,-706.0,0.00040732,30]
[393742277,1762959708274,-706.0,0.00040869,30]
[393742278,1762959708353,-185.0,0.0004088,120]
[393742279,1762959708432,-248.92089,0.00040888,30]
[393742280,1762959708509,-500.0,0.00040948,120]
[393742281,1762959708590,-706.0,0.00041006,30]
[393742282,1762959708670,-248.92089,0.00041088,30]
[393742283,1762959708754,-500.0,0.00041102,30]
[393742284,1762959708834,-706.0,0.00041143,30]
[393742285,1762959708917,-999.0,0.00041176,120]
[393742286,1762959709001,-706.0,0.0004128,30]
[393742287,1762959709077,-161.66,0.00041282,60]
[393742288,1762959709158,-248.92089,0.00041288,30]
[393742289,1762959709237,-706.0,0.00041417,30]
[393742290,1762959709314,-248.92089,0.00041488,30]
[393742291,1762959709393,-706.0,0.00041554,30]
[393742292,1762959709466,-248.92089,0.00041688,30]
[393742293,1762959709538,-706.0,0.00041691,30]
[393742294,1762959709612,-706.0,0.00041828,30]
[393742295,1762959709685,-248.92089,0.00041888,30]
[393742296,1762959709768,-802.24,0.000419,30]
[393742297,1762959709846,-706.0,0.00041965,30]
[393742298,1762959709925,-999.0,0.00041998,120]
[393742299,1762959710003,-706.0,0.00042102,30]
[393742300,1762959710099,-884.29,0.00042157,120]
[393742301,1762959710180,-706.44290651,0.00042239,30]
[393742302,1762959710258,-500.0,0.00042548,120]
[393742303,1762959710338,-527.623455,0.00042548,120]
[393742304,1762959710426,-500.0,0.00042548,120]
[393742305,1762959710505,-200.0,0.00042548,120]
[393742306,1762959710583,-185.0,0.00042924,120]
[393742307,1762959710658,-161.66,0.00042986,60]
[393742308,1762959710733,-241.83,0.00043,30]
[393742309,1762959710808,-367.0,0.00043,90]
[393742310,1762959710887,-173.0,0.00043,90]
[393742311,1762959710974,-367.0,0.00043014,90]
[393742312,1762959711055,-500.0,0.00043836,31]
[393742313,1762959711139,-500.0,0.00043836,31]
[393742314,1762959711220,-500.0,0.00043836,31]
[393742315,1762959711300,-150.0,0.00044,57]
[393742316,1762959711379,-802.24,0.000445,30]
[393742317,1762959711463,-161.66,0.0004469,60]
[393742318,1762959711553,-173.0,0.00044877,90]
[393742319,1762959711633,-367.0,0.00044877,90]
[393742320,1762959711706,-1098.05342992,0.00044999,60]
[393742321,1762959711794,-333256.83442369,0.00045,120]
[393742322,1762959711875,-606500.91168716,0.00045,120]
[393742323,1762959717574,200.0,0.0004036,30]
[393742324,1762959775270,997.0,0.0004036,30]
[393742325,1762959962542,200.0,0.00040361,30]
[393742326,1762960087163,300.0,0.00040361,120]
[393742328,1762960112462,1000.0,0.00040361,120]
[393742329,1762960127073,227.9552983,0.00040361,120]
[393742369,1762960231703,-187.15161929,0.00036579,2]
[393742371,1762960231713,-150.0,0.00036679,2]
[393742373,1762960231723,-210.0,0.00036816,2]
[393742375,1762960231732,-478.56668374,0.00036858,2]
[393742376,1762960231742,-93.26169697,0.00036975,2]
[393742377,1762960231754,-3267.75112514,0.00036975,2]
[393742379,1762960231763,-788.82638398,0.00037413,5]
[393742380,1762960231772,-400.0,0.00037512,3]
[393742381,1762960231782,-1600.0,0.00037512,3]
[393742382,1762960231791,-400.0,0.00037512,3]
[393742383,1762960231801,-200.0,0.00037513,2]
[393742384,1762960231810,-3084.99,0.00037513,2]
[393742385,1762960231819,-4266.90549099,0.00037513,2]
[393742386,1762960231839,-5733.08450901,0.00037513,2]
[393742387,1762960231849,-1000.0,0.00037831,2]
[393742388,1762960231859,-269.0,0.00038003,2]
[393742389,1762960231868,-168.0,0.00038004,7]
[393742390,1762960231878,-8274.1,0.00038004,2]
[393742391,1762960231887,-13888.54,0.00038004,2]
[393742392,1762960231897,-168.0,0.00038021,2]
[393742393,1762960231906,-57738.3871194,0.00038033,30]
[393742394,1762960231918,-991.27421435,0.00038033,30]
[393742395,1762960231929,-552.79812799,0.00038033,30]
[393742396,1762960231943,-10407.1612,0.00038033,30]
[393742476,1762960237638,-508.49232835,0.00038033,30]
[393742477,1762960237681,-242.95700991,0.00038033,30]
[393742478,1762960237692,-150.0,0.00038083,2]
[393742479,1762960237701,-886.7168368,0.00038228,2]
[393742480,1762960237711,-293.8,0.00038232,2]
[393742481,1762960237720,-168.0,0.00038707,2]
[393742482,1762960237729,-168.0,0.00038725,2]
[393742483,1762960237738,-168.0,0.00038823,2]
[393742484,1762960237748,-200.0,0.000389,14]
[393742485,1762960237757,-1000.0,0.00038978,2]
[393742486,1762960237767,-1000.0,0.00038978,120]
[393742487,1762960237776,-2500.0,0.00038978,2]
[393742488,1762960237786,-294.86,0.00038996,2]
[393742489,1762960237795,-374.193,0.00038996,2]
[393742490,1762960237805,-662.617,0.00038996,2]
[393742491,1762960237814,-560.0,0.00038996,2]
[393742492,1762960237824,-2143.0,0.00038996,2]
[393742493,1762960237833,-6482.0,0.00038996,2]
[393742494,1762960237843,-168.248,0.00038996,2]
[393742495,1762960237852,-322.541,0.00038996,2]
[393742496,1762960237861,-500.0,0.00039,14]
[393742497,1762960237871,-5238.77893903,0.00039004,2]
[393742498,1762960237880,-13940.15047029,0.00039078,2]
[393742499,1762960237891,-46126.8325149,0.00039078,2]
[393742500,1762960238232,-797.6272964,0.00039078,2]
[393742501,1762960238255,-20684.39096534,0.00039078,2]
[393742512,1762960239736,-2701.1052603,0.00039078,2]
[393742514,1762960239885,-1281.13039808,0.00039078,2]
[393742515,1762960240009,-34936.02329469,0.00039078,2]
[393742516,1762960240019,-1000.0,0.00039078,2]
[393742517,1762960240029,-700.0,0.000391,14]
[393742518,1762960240039,-166.66,0.00039169,2]
[393742519,1762960240049,-500.0,0.00039178,20]
[393742520,1762960240059,-502.66742111,0.00039178,20]
[393742521,1762960240069,-258.28,0.00039178,30]
[393742522,1762960240079,-500.0,0.00039178,20]
[393742523,1762960240093,-500.0,0.00039178,20]
[393742524,1762960240103,-500.0,0.00039178,20]
[393742525,1762960240112,-500.0,0.00039178,20]
[393742526,1762960240122,-500.0,0.00039178,20]
[393742527,1762960240131,-165.13603197,0.00039178,20]
[393742528,1762960240141,-500.0,0.00039178,20]
[393742529,1762960240150,-500.0,0.00039178,2]
[393742530,1762960240159,-500.0,0.00039178,20]
[393742531,1762960240169,-502.14886741,0.00039178,2]
[393742532,1762960240179,-256.2382769,0.00039178,20]
[393742533,1762960240189,-559.5427248,0.00039178,20]
[393742534,1762960240198,-500.0,0.00039178,20]
[393742535,1762960240208,-586.94722497,0.00039178,20]
[393742536,1762960240218,-500.0,0.00039178,2]
[393742537,1762960240230,-500.0,0.00039178,20]
[393742538,1762960240239,-378.9405884,0.00039178,2]
[393742540,1762960240249,-1000.0,0.000392,14]
[393742541,1762960240258,-4018.42094087,0.00039265,2]
[393742543,1762960240268,-168.0,0.0003927,2]
[393742545,1762960240278,-1200.0,0.000393,14]
[393742546,1762960240291,-162.66541084,0.00039312,20]
[393742547,1762960240302,-168.0,0.00039324,7]
[393742548,1762960240312,-1140.61918557,0.00039399,2]
[393742549,1762960240321,-156.53410877,0.00039399,15]
[393742550,1762960240331,-200.49008386,0.00039399,11]
[393742551,1762960240341,-200.0,0.000394,14]
[393742552,1762960240351,-4018.42094087,0.00039407,2]
[393742553,1762960240361,-168.0,0.00039486,7]
[393742554,1762960240371,-194.11851973,0.00039488,4]
[393742555,1762960240381,-970.59259865,0.00039489,4]
[393742556,1762960240392,-1140.61918551,0.00039495,2]
[393742557,1762960240402,-500.0,0.00039498,20]
[393742558,1762960240413,-500.0,0.00039498,20]
[393742559,1762960240423,-500.0,0.00039498,20]
[393742560,1762960240433,-500.0,0.00039498,20]
[393742561,1762960240445,-500.0,0.00039498,20]
[393742562,1762960240455,-667.61,0.00039498,20]
[393742563,1762960240465,-500.0,0.00039498,20]
[393742564,1762960240476,-500.0,0.00039498,20]
[393742565,1762960240486,-500.0,0.00039498,20]
[393742566,1762960240500,-500.0,0.00039498,20]
[393742567,1762960240510,-500.0,0.00039498,20]
[393742568,1762960240520,-587.01,0.00039498,20]
[393742569,1762960240531,-500.0,0.00039498,20]
[393742570,1762960240541,-500.0,0.00039498,20]
[393742571,1762960240551,-500.0,0.00039498,20]
[393742572,1762960240561,-536.39,0.00039498,20]
[393742573,1762960240572,-500.0,0.00039498,20]
[393742574,1762960240582,-596.88,0.00039498,20]
[393742575,1762960240593,-500.0,0.00039498,20]
[393742576,1762960240603,-500.0,0.00039498,20]
[393742577,1762960240613,-718.14,0.00039498,20]
[393742578,1762960240623,-518.23,0.00039498,20]
[393742579,1762960240632,-500.0,0.00039498,20]
[393742580,1762960240642,-633.43,0.00039498,20]
[393742581,1762960240651,-500.0,0.00039498,20]
[393742582,1762960240661,-805.02,0.00039498,20]
[393742583,1762960240671,-263.32912143,0.00039498,20]
[393742584,1762960240684,-576.34,0.00039498,20]
[393742585,1762960240696,-500.0,0.00039498,20]
[393742586,1762960240706,-500.0,0.00039498,20]
[393742587,1762960240716,-500.0,0.00039498,20]
[393742588,1762960240726,-500.0,0.00039498,20]
[393742589,1762960240735,-500.0,0.00039498,20]
[393742590,1762960240745,-746.46,0.00039498,20]
[393742591,1762960240755,-500.0,0.00039498,20]
[393742592,1762960240765,-912.67,0.00039498,20]
[393742593,1762960240775,-500.0,0.00039498,20]
[393742594,1762960240784,-500.0,0.00039498,20]
[393742595,1762960240794,-500.0,0.00039498,20]
[393742596,1762960240804,-500.0,0.00039498,20]
[393742597,1762960240814,-500.0,0.00039498,20]
[393742598,1762960240825,-1206.24,0.00039498,20]
[393742599,1762960240835,-500.0,0.00039498,20]
[393742600,1762960240845,-884.16,0.00039498,20]
[393742601,1762960240855,-500.0,0.00039498,20]
[393742602,1762960240865,-500.0,0.00039498,20]
[393742603,1762960240874,-600.49,0.00039498,20]
[393742604,1762960240887,-500.0,0.00039498,20]
[393742605,1762960240897,-500.0,0.00039498,20]
[393742606,1762960240907,-500.0,0.00039498,20]
[393742607,1762960240917,-500.0,0.00039498,20]
[393742608,1762960240927,-500.0,0.00039498,20]
[393742609,1762960240936,-1538.55,0.00039498,20]
[393742610,1762960240947,-500.0,0.00039498,20]
[393742611,1762960240957,-687.44,0.00039498,20]
[393742612,1762960240967,-500.0,0.00039498,20]
[393742613,1762960240977,-781.45,0.00039498,20]
[393742614,1762960241228,-500.0,0.00039498,20]
[393742615,1762960241237,-603.97,0.00039498,20]
[393742616,1762960241245,-500.0,0.00039498,20]
[393742617,1762960241253,-500.0,0.00039498,20]
[393742618,1762960241261,-500.0,0.00039498,20]
[393742619,1762960241270,-500.0,0.00039498,20]
[393742620,1762960241278,-500.0,0.00039498,20]
[393742621,1762960241286,-500.0,0.00039498,20]
[393742622,1762960241294,-500.0,0.00039498,20]
[393742623,1762960241303,-766.42,0.00039498,20]
[393742624,1762960241312,-500.0,0.00039498,20]
[393742625,1762960241323,-500.0,0.00039498,20]
[393742626,1762960241331,-500.0,0.00039498,20]
[393742627,1762960241339,-247.92,0.00039498,20]
[393742628,1762960241348,-500.0,0.00039498,20]
[393742629,1762960241356,-500.0,0.00039498,20]
[393742630,1762960241365,-839.59,0.00039498,20]
[393742631,1762960241373,-500.0,0.00039498,20]
[393742632,1762960241382,-500.0,0.00039498,20]
[393742633,1762960241403,-500.0,0.00039498,20]
[393742634,1762960241414,-500.0,0.00039498,20]
[393742635,1762960241423,-500.0,0.00039498,20]
[393742636,1762960241431,-165.07041588,0.00039498,20]
[393742637,1762960241446,-334.92958412,0.00039498,20]
[393742638,1762960241454,-510.50306986,0.00039498,20]
[393742639,1762960241463,-500.0,0.00039498,20]
[393742640,1762960241472,-500.0,0.00039498,20]
[393742641,1762960241481,-500.0,0.00039498,20]
[393742642,1762960241491,-500.0,0.00039498,20]
[393742643,1762960241501,-188.04,0.00039498,20]
[393742644,1762960241510,-500.0,0.00039498,20]
[393742645,1762960241519,-500.0,0.00039498,20]
[393742646,1762960241526,-500.0,0.00039498,2]
[393742647,1762960241533,-500.0,0.00039498,20]
[393742648,1762960241540,-500.0,0.00039498,20]
[393742649,1762960241548,-500.0,0.00039498,20]
[393742650,1762960241556,-500.0,0.00039498,20]
[393742651,1762960241563,-513.27,0.00039498,20]
[393742652,1762960241571,-500.0,0.00039498,20]
[393742653,1762960241577,-713.84,0.00039498,20]
[393742654,1762960241584,-500.0,0.00039498,20]
[393742655,1762960241594,-500.0,0.00039498,20]
[393742656,1762960241604,-500.0,0.00039498,20]
[393742657,1762960241613,-500.0,0.00039498,20]
[393742658,1762960241623,-500.0,0.00039498,20]
[393742659,1762960241633,-500.0,0.00039498,20]
[393742660,1762960241642,-633.82,0.00039498,20]
[393742661,1762960241652,-360.50895801,0.00039499,20]
[393742662,1762960241662,-500.0,0.00039499,20]
[393742663,1762960241672,-500.0,0.00039499,20]
[393742664,1762960241681,-500.0,0.00039499,20]
[393742665,1762960241692,-500.0,0.00039499,20]
[393742666,1762960241702,-340.90715531,0.00039499,20]
[393742667,1762960241711,-500.0,0.00039499,20]
[393742668,1762960241721,-500.0,0.00039499,20]
[393742669,1762960241730,-500.0,0.00039499,20]
[393742670,1762960241739,-615.68904382,0.00039499,20]
[393742671,1762960241749,-500.0,0.00039499,20]
[393742672,1762960241758,-500.0,0.00039499,20]
[393742673,1762960241768,-500.0,0.00039499,20]
[393742674,1762960241778,-500.0,0.00039499,20]
[393742675,1762960241787,-500.0,0.00039499,20]
[393742676,1762960241797,-500.0,0.00039499,20]
[393742677,1762960241806,-500.0,0.00039499,20]
[393742678,1762960241815,-500.0,0.00039499,20]
[393742679,1762960241825,-500.0,0.00039499,7]
[393742680,1762960241835,-500.0,0.00039499,20]
[393742681,1762960241845,-500.0,0.00039499,20]
[393742682,1762960241856,-500.0,0.00039499,20]
[393742683,1762960241866,-500.0,0.00039499,20]
[393742684,1762960241876,-500.0,0.00039499,20]
[393742685,1762960241887,-500.0,0.00039499,20]
[393742686,1762960241897,-500.0,0.00039499,20]
[393742687,1762960241907,-247.66170784,0.00039499,20]
[393742688,1762960241917,-500.0,0.00039499,20]
[393742689,1762960241927,-500.0,0.00039499,20]
[393742690,1762960241937,-500.0,0.00039499,20]
[393742691,1762960241949,-500.0,0.00039499,20]
[393742692,1762960241962,-192.02538278,0.00039499,20]
[393742693,1762960241973,-309.5721749,0.00039499,20]
[393742694,1762960241983,-500.0,0.00039499,20]
[393742695,1762960241993,-231.2781194,0.00039499,20]
[393742696,1762960242003,-500.0,0.00039499,20]
[393742697,1762960242013,-500.0,0.00039499,20]
[393742698,1762960242023,-500.0,0.00039499,20]
[393742699,1762960242032,-500.0,0.00039499,20]
[393742700,1762960242042,-500.0,0.00039499,20]
[393742701,1762960242052,-500.0,0.00039499,20]
[393742702,1762960242062,-500.24410107,0.00039499,20]
[393742703,1762960242071,-500.0,0.00039499,20]
[393742704,1762960242081,-500.0,0.00039499,20]
[393742705,1762960242091,-476.11336872,0.00039499,20]
[393742706,1762960242101,-500.0,0.00039499,20]
[393742707,1762960242111,-310.79747451,0.00039499,20]
[393742708,1762960242121,-418.44594308,0.00039499,20]
[393742709,1762960242131,-1000.0,0.00039499,2]
[393742710,1762960242141,-500.0,0.00039499,20]
[393742711,1762960242150,-541.77560864,0.00039499,20]
[393742712,1762960242159,-500.0,0.00039499,20]
[393742713,1762960242169,-325.81750603,0.00039499,7]
[393742714,1762960242179,-500.0,0.00039499,20]
[393742715,1762960242189,-500.0,0.00039499,20]
[393742716,1762960242200,-500.0,0.00039499,20]
[393742717,1762960242210,-500.0,0.00039499,20]
[393742718,1762960242219,-199.0,0.00039499,7]
[393742719,1762960242229,-483.07280378,0.00039499,20]
[393742720,1762960242238,-500.0,0.00039499,20]
[393742721,1762960242249,-500.0,0.00039499,20]
[393742722,1762960242258,-500.0,0.00039499,20]
[393742723,1762960242268,-310.43151186,0.00039499,20]
[393742724,1762960242278,-187.74593908,0.00039499,20]
[393742725,1762960242287,-500.0,0.00039499,20]
[393742726,1762960242297,-500.0,0.00039499,20]
[393742727,1762960242310,-275.25972564,0.00039499,20]
[393742728,1762960242320,-509.99200586,0.00039499,20]
[393742729,1762960242330,-500.0,0.00039499,20]
[393742730,1762960242344,-500.0,0.00039499,20]
[393742731,1762960242353,-606.46246259,0.00039499,20]
[393742732,1762960242363,-229.65024865,0.00039499,20]
[393742733,1762960242373,-500.0,0.00039499,20]
[393742734,1762960242383,-500.0,0.00039499,20]
[393742735,1762960242393,-620.15308823,0.00039499,20]
[393742736,1762960242403,-536.7026372,0.00039499,20]
[393742738,1762960242412,-345.31102338,0.00039499,20]
[393742739,1762960242422,-298.63599365,0.00039499,20]
[393742740,1762960242432,-500.0,0.00039499,20]
[393742741,1762960242442,-300.15064756,0.00039499,20]
[393742742,1762960242452,-500.0,0.00039499,20]
[393742743,1762960242463,-500.0,0.00039499,20]
[393742744,1762960242472,-366.26774277,0.00039499,20]
[393742745,1762960242483,-324.01081939,0.00039499,20]
[393742746,1762960242493,-500.0,0.00039499,20]
[393742747,1762960242502,-205.77569719,0.00039499,20]
[393742748,1762960242512,-500.0,0.00039499,20]
[393742749,1762960242521,-500.0,0.00039499,20]
[393742751,1762960242530,-500.0,0.00039499,20]
[393742752,1762960242540,-500.0,0.00039499,20]
[393742753,1762960242549,-417.13306642,0.00039499,20]
[393742755,1762960242559,-500.0,0.00039499,20]
[393742757,1762960242569,-500.0,0.00039499,20]
[393742758,1762960242578,-500.0,0.00039499,20]
[393742759,1762960242588,-500.0,0.00039499,20]
[393742760,1762960242598,-554.9525438,0.00039499,20]
[393742761,1762960242607,-500.0,0.00039499,20]
[393742762,1762960242617,-524.26118812,0.00039499,20]
[393742763,1762960242626,-500.0,0.00039499,20]
[393742764,1762960242636,-320.60492524,0.00039499,20]
[393742765,1762960242645,-500.0,0.00039499,20]
[393742766,1762960242654,-501.23132003,0.00039499,20]
[393742767,1762960242664,-608.73483719,0.00039499,20]
[393742769,1762960242674,-500.0,0.00039499,20]
[393742771,1762960242683,-169.37452186,0.00039499,20]
[393742773,1762960242692,-332.93653607,0.00039499,20]
[393742775,1762960242702,-500.0,0.00039499,20]
[393742777,1762960242711,-500.0,0.00039499,20]
[393742779,1762960242724,-597.09710149,0.00039499,20]
[393742781,1762960242734,-547.82441939,0.00039499,20]
[393742783,1762960242743,-500.0,0.00039499,20]
[393742785,1762960242753,-500.0,0.00039499,20]
[393742787,1762960242762,-500.0,0.00039499,20]
[393742789,1762960242772,-500.0,0.00039499,20]
[393742791,1762960242781,-194.55300213,0.00039499,20]
[393742792,1762960242790,-500.0,0.00039499,20]
[393742793,1762960242801,-513.30573183,0.00039499,20]
[393742794,1762960242811,-500.0,0.00039499,20]
[393742795,1762960242820,-209.73499392,0.00039499,20]
[393742796,1762960242830,-500.0,0.00039499,20]
[393742797,1762960242840,-500.0,0.00039499,20]
[393742798,1762960242850,-415.77377488,0.00039499,20]
[393742799,1762960242859,-500.0,0.00039499,20]
[393742800,1762960242870,-500.0,0.00039499,20]
[393742801,1762960242879,-500.0,0.00039499,20]
[393742802,1762960242889,-500.0,0.00039499,20]
[393742803,1762960242898,-500.0,0.00039499,20]
[393742804,1762960242908,-500.0,0.00039499,20]
[393742805,1762960242918,-500.0,0.00039499,20]
[393742806,1762960242927,-500.0,0.00039499,20]
[393742807,1762960242938,-524.73314468,0.00039499,20]
[393742808,1762960242948,-603.1958783,0.00039499,20]
[393742809,1762960242958,-500.0,0.00039499,20]
[393742810,1762960242968,-500.0,0.00039499,20]
[393742811,1762960242978,-500.0,0.00039499,20]
[393742812,1762960242988,-500.0,0.00039499,20]
[393742813,1762960242997,-500.0,0.00039499,20]
[393742814,1762960243007,-561.63456578,0.00039499,20]
[393742815,1762960243017,-500.0,0.00039499,20]
[393742816,1762960243027,-500.0,0.00039499,20]
[393742817,1762960243037,-500.0,0.00039499,20]
[393742818,1762960243047,-500.0,0.00039499,20]
[393742819,1762960243057,-500.0,0.00039499,20]